{"text_format":"3","workbook":"xlsx","n_sheets":2,"sheets":["Inicio","Parte de horas anual"],"not_rendered":{"defined_names":2},"read":"whole","date_system":"1900"}

{"sheet":"Inicio","index":0,"n_rows":8,"n_cols":2,"rows_kept":8}
[null,"Acerca de esta plantilla"]
[null,"Realice un seguimiento diario, semanal, mensual y anual de las horas en esta tarjeta de registro de empleado."]
[null,"Complétela con información básica como el nombre, el número de teléfono y la dirección de correo electrónico del empleado, y el nombre del superior. "]
[null,"Agregue las horas a la tabla de cada mes. Registre las horas normales y las horas extra en columnas independientes para cada día laborable de cada semana. "]
[null,"El total de horas trabajadas, las horas normales y las horas extra se calculan automáticamente. "]
[null,"Notas:  "]
[null,"Se facilitan instrucciones adicionales en la columna A de la hoja de cálculo PARTE DE HORAS ANUAL. Este texto se ha ocultado a propósito. Para eliminar el texto, seleccione la columna A y, a continuación, ELIMINAR. Para mostrar el texto, seleccione la columna A y, a continuación, cambie el color de fuente. "]
[null,"Para obtener más información sobre las tablas, presione las teclas MAYÚS y F10 dentro de una tabla, seleccione la opción TABLA y, después, TEXTO ALTERNATIVO."]

{"sheet":"Parte de horas anual","index":1,"n_rows":138,"n_cols":15,"rows_kept":138,"merged":[[1,1,44,1],[1,5,1,6],[2,5,2,6],[3,5,3,6]]}
[]
[null,"TARJETA DE HORAS TRABAJADAS DEL EMPLEADO",null,null,"Nombre del empleado:","José Vivanco",null,"Horas normales:",null,"Horas extra:",null,"Total",null,"Director:"]
[{"$nulls":4},"Correo electrónico:","jose@ejemplo.com",null,{"$f":"Horas_normales","v":400},null,{"$f":"Horas_extra","v":2},null,{"$f":"Horas_normales+Horas_extra","v":402},null,"Isabel Robledo"]
[{"$nulls":4},"Teléfono:","(212) 555-0123"]
[]
[]
[" ",{"$nulls":3},"Enero, febrero, marzo   |   Tarjeta de tiempo del empleado: diaria, semanal, mensual, anual"]
[" ",{"$nulls":3},"Enero","Semana 1","Horas extra","Semana 2","Horas extra  ","Semana 3","Horas extra   ","Semana 4","Horas extra    ","Semana 5","Horas extra     "]
[" ",{"$nulls":3},"Lunes",{"v":8,"d":"8.0"},null,{"v":8,"d":"8.0"},null,{"v":8,"d":"8.0"},null,{"v":8,"d":"8.0"},null,{"v":8,"d":"8.0"}]
[" ",{"$nulls":3},"Martes",{"v":8,"d":"8.0"},{"v":2,"d":"2.0"},{"v":8,"d":"8.0"},null,{"v":8,"d":"8.0"},null,{"v":8,"d":"8.0"},null,{"v":8,"d":"8.0"}]
[" ",{"$nulls":3},"Miércoles",{"v":8,"d":"8.0"},null,{"v":8,"d":"8.0"},null,{"v":8,"d":"8.0"},null,{"v":8,"d":"8.0"},null,{"v":8,"d":"8.0"}]
[{"$nulls":4},"Jueves",{"v":8,"d":"8.0"},null,{"v":8,"d":"8.0"},null,{"v":8,"d":"8.0"},null,{"v":8,"d":"8.0"},null,{"v":8,"d":"8.0"}]
[{"$nulls":4},"Viernes",{"v":8,"d":"8.0"},null,{"v":8,"d":"8.0"},null,{"v":8,"d":"8.0"},null,{"v":8,"d":"8.0"},null,{"v":8,"d":"8.0"}]
[{"$nulls":4},"Sábado"]
[" ",{"$nulls":3},"Domingo"]
[" ",{"$nulls":3},"Total semanal de horas",{"$f":"SUM(F9:F15)","v":{"v":40,"d":"40.0"}},{"v":2,"d":"2.0"},{"v":40,"d":"40.0"},{"v":0,"d":"0.0"},{"v":40,"d":"40.0"},{"v":0,"d":"0.0"},{"v":40,"d":"40.0"},{"v":0,"d":"0.0"},{"v":40,"d":"40.0"},{"v":0,"d":"0.0"}]
[" ",{"$nulls":3},{"$f":"TEXT(DATEVALUE(Enero[[#Headers],[Enero]]&\"  \"&YEAR(TODAY())),\"mmm.\")&\" Total: Horas normales\"","v":"ene. Total: Horas normales"},{"$f":"SUM(Enero[Semana 1],Enero[Semana 2],Enero[Semana 3],Enero[Semana 4],Enero[Semana 5])","v":{"v":200,"d":"200.0"}},{"$nulls":5},{"$f":"TEXT(DATEVALUE(Enero[[#Headers],[Enero]]&\"  \"&YEAR(TODAY())),\"mmm.\")&\" total: Horas extra\"","v":"ene. total: Horas extra"},null,{"$f":"SUM(Enero[Horas extra],Enero[[Horas extra  ]],Enero[[Horas extra   ]],Enero[[Horas extra    ]],Enero[[Horas extra     ]])","v":{"v":2,"d":"2.0"}}]
[]
[" ",{"$nulls":3},"Febrero","Semana 1","Horas extra","Semana 2","Horas extra  ","Semana 3","Horas extra   ","Semana 4","Horas extra    ","Semana 5","Horas extra     "]
[{"$nulls":4},"Lunes",{"v":8,"d":"8.0"},null,{"v":8,"d":"8.0"},null,{"v":8,"d":"8.0"},null,{"v":8,"d":"8.0"},null,{"v":8,"d":"8.0"}]
[{"$nulls":4},"Martes",{"v":8,"d":"8.0"},{"v":2,"d":"2.0"},{"v":8,"d":"8.0"},null,{"v":8,"d":"8.0"},null,{"v":8,"d":"8.0"},null,{"v":8,"d":"8.0"}]
[{"$nulls":4},"Miércoles",{"v":8,"d":"8.0"},null,{"v":8,"d":"8.0"},null,{"v":8,"d":"8.0"},null,{"v":8,"d":"8.0"},null,{"v":8,"d":"8.0"}]
[{"$nulls":4},"Jueves",{"v":8,"d":"8.0"},null,{"v":8,"d":"8.0"},null,{"v":8,"d":"8.0"},3.5,{"v":8,"d":"8.0"},null,{"v":8,"d":"8.0"}]
[{"$nulls":4},"Viernes",{"v":8,"d":"8.0"},null,{"v":8,"d":"8.0"},null,{"v":8,"d":"8.0"},null,{"v":8,"d":"8.0"},null,{"v":8,"d":"8.0"}]
[{"$nulls":4},"Sábado"]
[{"$nulls":4},"Domingo"]
[{"$nulls":4},"Total semanal de horas",{"$f":"SUM(F20:F26)","v":{"v":40,"d":"40.0"}},{"v":2,"d":"2.0"},{"v":40,"d":"40.0"},{"v":0,"d":"0.0"},{"v":40,"d":"40.0"},3.5,{"v":40,"d":"40.0"},{"v":0,"d":"0.0"},{"v":40,"d":"40.0"},{"v":0,"d":"0.0"}]
[" ",{"$nulls":3},{"$f":"TEXT(DATEVALUE(Febrero[[#Headers],[Febrero]]&\"  \"&YEAR(TODAY())),\"mmm.\")&\" total: Horas normales\"","v":"feb. total: Horas normales"},{"$f":"SUM(Febrero[Semana 1],Febrero[Semana 2],Febrero[Semana 3],Febrero[Semana 4],Febrero[Semana 5])","v":{"v":200,"d":"200.0"}},{"$nulls":5},{"$f":"TEXT(DATEVALUE(Febrero[[#Headers],[Febrero]]&\" \"&YEAR(TODAY())),\"mmm.\")&\" total: Horas extra\"","v":"feb. total: Horas extra"},null,{"$f":"SUM(Febrero[Horas extra],Febrero[[Horas extra  ]],Febrero[[Horas extra   ]],Febrero[[Horas extra    ]],Febrero[[Horas extra     ]])","v":5.5}]
[]
[" ",{"$nulls":3},"Marzo","Semana 1","Horas extra","Semana 2","Horas extra  ","Semana 3","Horas extra ","Semana 4","Horas extra    ","Semana 5","Horas extra     "]
[{"$nulls":4},"Lunes"]
[{"$nulls":4},"Martes"]
[{"$nulls":4},"Miércoles"]
[{"$nulls":4},"Jueves"]
[{"$nulls":4},"Viernes"]
[{"$nulls":4},"Sábado"]
[{"$nulls":4},"Domingo"]
[{"$nulls":4},"Total semanal de horas",{"$f":"SUM(F31:F37)","v":{"v":0,"d":"0.0"}},{"v":0,"d":"0.0"},{"v":0,"d":"0.0"},{"v":0,"d":"0.0"},{"v":0,"d":"0.0"},{"v":0,"d":"0.0"},{"v":0,"d":"0.0"},{"v":0,"d":"0.0"},{"v":0,"d":"0.0"},{"v":0,"d":"0.0"}]
[" ",{"$nulls":3},{"$f":"TEXT(DATEVALUE(Marzo[[#Headers],[Marzo]]&\" \"&YEAR(TODAY())),\"mmm.\")&\" total: Horas normales\"","v":"mar. total: Horas normales"},{"$f":"SUM(Marzo[Semana 1],Marzo[Semana 2],Marzo[Semana 3],Marzo[Semana 4],Marzo[Semana 5])","v":{"v":0,"d":"0.0"}},{"$nulls":5},{"$f":"TEXT(DATEVALUE(Marzo[[#Headers],[Marzo]]&\" \"&YEAR(TODAY())),\"mmm.\")&\" total: Horas extra\"","v":"mar. total: Horas extra"},null,{"$f":"SUM(Marzo[Horas extra],Marzo[[Horas extra  ]],Marzo[[Horas extra ]],Marzo[[Horas extra    ]],Marzo[[Horas extra     ]])","v":{"v":0,"d":"0.0"}}]
[" ",{"$nulls":3},"Abril, mayo, junio   |   Tarjeta de horas trabajadas del empleado: diaria, semanal, mensual y anual"]
[" ",{"$nulls":3},"Abril","Semana 1","Horas extra","Semana 2","Horas extra  ","Semana 3","Horas extra   ","Semana 4","Horas extra    ","Semana 5","Horas extra     "]
[{"$nulls":4},"Lunes"]
[{"$nulls":4},"Martes"]
[{"$nulls":4},"Miércoles"]
[{"$nulls":4},"Jueves"]
[{"$nulls":4},"Viernes"]
[{"$nulls":4},"Sábado"]
[{"$nulls":4},"Domingo"]
[{"$nulls":4},"Total semanal de horas",{"$f":"SUM(F42:F48)","v":{"v":0,"d":"0.0"}},{"v":0,"d":"0.0"},{"v":0,"d":"0.0"},{"v":0,"d":"0.0"},{"v":0,"d":"0.0"},{"v":0,"d":"0.0"},{"v":0,"d":"0.0"},{"v":0,"d":"0.0"},{"v":0,"d":"0.0"},{"v":0,"d":"0.0"}]
[" ",{"$nulls":3},{"$f":"TEXT(DATEVALUE(Abril[[#Headers],[Abril]]&\" \"&YEAR(TODAY())),\"mmm.\")&\" total: Horas normales\"","v":"abr. total: Horas normales"},{"$f":"SUM(Abril[Semana 1],Abril[Semana 2],Abril[Semana 3],Abril[Semana 4],Abril[Semana 5])","v":{"v":0,"d":"0.0"}},{"$nulls":5},{"$f":"TEXT(DATEVALUE(Abril[[#Headers],[Abril]]&\" \"&YEAR(TODAY())),\"mmm.\")&\" total: Horas extra\"","v":"abr. total: Horas extra"},null,{"$f":"SUM(Abril[Horas extra],Abril[[Horas extra  ]],Abril[[Horas extra   ]],Abril[[Horas extra    ]],Abril[[Horas extra     ]])","v":{"v":0,"d":"0.0"}}]
[]
[" ",{"$nulls":3},"Mayo","Semana 1","Horas extra","Semana 2","Horas extra  ","Semana 3","Horas extra   ","Semana 4","Horas extra    ","Semana 5","Horas extra     "]
[{"$nulls":4},"Lunes"]
[{"$nulls":4},"Martes"]
[{"$nulls":4},"Miércoles"]
[{"$nulls":4},"Jueves"]
[{"$nulls":4},"Viernes"]
[{"$nulls":4},"Sábado"]
[{"$nulls":4},"Domingo"]
[{"$nulls":4},"Total semanal de horas",{"$f":"SUM(F53:F59)","v":{"v":0,"d":"0.0"}},{"v":0,"d":"0.0"},{"v":0,"d":"0.0"},{"v":0,"d":"0.0"},{"v":0,"d":"0.0"},{"v":0,"d":"0.0"},{"v":0,"d":"0.0"},{"v":0,"d":"0.0"},{"v":0,"d":"0.0"},{"v":0,"d":"0.0"}]
[" ",{"$nulls":3},{"$f":"TEXT(DATEVALUE(Mayo[[#Headers],[Mayo]]&\" \"&YEAR(TODAY())),\"mmm.\")&\" total: Horas normales\"","v":"may. total: Horas normales"},{"$f":"SUM(Mayo[Semana 1],Mayo[Semana 2],Mayo[Semana 3],Mayo[Semana 4],Mayo[Semana 5])","v":{"v":0,"d":"0.0"}},{"$nulls":5},{"$f":"TEXT(DATEVALUE(Mayo[[#Headers],[Mayo]]&\" \"&YEAR(TODAY())),\"mmm.\")&\" total: Horas extra\"","v":"may. total: Horas extra"},null,{"$f":"SUM(Mayo[Horas extra],Mayo[[Horas extra  ]],Mayo[[Horas extra   ]],Mayo[[Horas extra    ]],Mayo[[Horas extra     ]])","v":{"v":0,"d":"0.0"}}]
[]
[" ",{"$nulls":3},"Junio","Semana 1","Horas extra","Semana 2","Horas extra  ","Semana 3","Horas extra   ","Semana 4","Horas extra    ","Semana 5","Horas extra     "]
[{"$nulls":4},"Lunes"]
[{"$nulls":4},"Martes"]
[{"$nulls":4},"Miércoles"]
[{"$nulls":4},"Jueves"]
[{"$nulls":4},"Viernes"]
[{"$nulls":4},"Sábado"]
[{"$nulls":4},"Domingo"]
[{"$nulls":4},"Total semanal de horas",{"$f":"SUM(F64:F70)","v":{"v":0,"d":"0.0"}},{"v":0,"d":"0.0"},{"v":0,"d":"0.0"},{"v":0,"d":"0.0"},{"v":0,"d":"0.0"},{"v":0,"d":"0.0"},{"v":0,"d":"0.0"},{"v":0,"d":"0.0"},{"v":0,"d":"0.0"},{"v":0,"d":"0.0"}]
[" ",{"$nulls":3},{"$f":"TEXT(DATEVALUE(Junio[[#Headers],[Junio]]&\" \"&YEAR(TODAY())),\"mmm.\")&\" total: Horas normales\"","v":"jun. total: Horas normales"},{"$f":"SUM(Junio[Semana 1],Junio[Semana 2],Junio[Semana 3],Junio[Semana 4],Junio[Semana 5])","v":{"v":0,"d":"0.0"}},{"$nulls":5},{"$f":"TEXT(DATEVALUE(Junio[[#Headers],[Junio]]&\" \"&YEAR(TODAY())),\"mmm.\")&\" total: Horas extra\"","v":"jun. total: Horas extra"},null,{"$f":"SUM(Junio[Horas extra],Junio[[Horas extra  ]],Junio[[Horas extra   ]],Junio[[Horas extra    ]],Junio[[Horas extra     ]])","v":{"v":0,"d":"0.0"}}]
[" ",{"$nulls":3},"Julio, agosto, septiembre   |   Tarjeta de horas trabajadas del empleado: diaria, semanal, mensual y anual"]
[" ",{"$nulls":3},"Julio","Semana 1","Horas extra","Semana 2","Horas extra ","Semana 3","Horas extra  ","Semana 4","Horas extra   ","Semana 5","Horas extra     "]
[{"$nulls":4},"Lunes"]
[{"$nulls":4},"Martes"]
[{"$nulls":4},"Miércoles"]
[{"$nulls":4},"Jueves"]
[{"$nulls":4},"Viernes"]
[{"$nulls":4},"Sábado"]
[{"$nulls":4},"Domingo"]
[{"$nulls":4},"Total semanal de horas",{"$f":"SUM(F75:F81)","v":{"v":0,"d":"0.0"}},{"v":0,"d":"0.0"},{"v":0,"d":"0.0"},{"v":0,"d":"0.0"},{"v":0,"d":"0.0"},{"v":0,"d":"0.0"},{"v":0,"d":"0.0"},{"v":0,"d":"0.0"},{"v":0,"d":"0.0"},{"v":0,"d":"0.0"}]
[" ",{"$nulls":3},{"$f":"TEXT(DATEVALUE(Julio[[#Headers],[Julio]]&\" \"&YEAR(TODAY())),\"mmm.\")&\" total: Horas normales\"","v":"jul. total: Horas normales"},{"$f":"SUM(Julio[Semana 1],Julio[Semana 2],Julio[Semana 3],Julio[Semana 4],Julio[Semana 5])","v":{"v":0,"d":"0.0"}},{"$nulls":5},{"$f":"TEXT(DATEVALUE(Julio[[#Headers],[Julio]]&\" \"&YEAR(TODAY())),\"mmm.\")&\" total: Horas extra\"","v":"jul. total: Horas extra"},null,{"$f":"SUM(Julio[Horas extra],Julio[[Horas extra ]],Julio[[Horas extra  ]],Julio[[Horas extra   ]],Julio[[Horas extra     ]])","v":{"v":0,"d":"0.0"}}]
[]
[" ",{"$nulls":3},"Agosto","Semana 1","Horas extra","Semana 2","Horas extra ","Semana 3","Horas extra   ","Semana 4","Horas extra  ","Semana 5","Horas extra    "]
[{"$nulls":4},"Lunes"]
[{"$nulls":4},"Martes"]
[{"$nulls":4},"Miércoles"]
[{"$nulls":4},"Jueves"]
[{"$nulls":4},"Viernes"]
[{"$nulls":4},"Sábado"]
[{"$nulls":4},"Domingo"]
[{"$nulls":4},"Total semanal de horas",{"$f":"SUBTOTAL(109,Agosto[Semana 1])","v":{"v":0,"d":"0.0"}},{"$f":"SUBTOTAL(109,Agosto[Horas extra])","v":{"v":0,"d":"0.0"}},{"$f":"SUBTOTAL(109,Agosto[Semana 2])","v":{"v":0,"d":"0.0"}},{"$f":"SUBTOTAL(109,Agosto[[Horas extra ]])","v":{"v":0,"d":"0.0"}},{"$f":"SUBTOTAL(109,Agosto[Semana 3])","v":{"v":0,"d":"0.0"}},{"$f":"SUBTOTAL(109,Agosto[[Horas extra   ]])","v":{"v":0,"d":"0.0"}},{"$f":"SUBTOTAL(109,Agosto[Semana 4])","v":{"v":0,"d":"0.0"}},{"$f":"SUBTOTAL(109,Agosto[[Horas extra  ]])","v":{"v":0,"d":"0.0"}},{"$f":"SUBTOTAL(109,Agosto[Semana 5])","v":{"v":0,"d":"0.0"}},{"$f":"SUBTOTAL(109,Agosto[[Horas extra    ]])","v":{"v":0,"d":"0.0"}}]
[" ",{"$nulls":3},{"$f":"TEXT(DATEVALUE(Agosto[[#Headers],[Agosto]]&\" \"&YEAR(TODAY())),\"mmm.\")&\" total: Horas normales\"","v":"ago. total: Horas normales"},{"$f":"SUM(Agosto[Semana 1],Agosto[Semana 2],Agosto[Semana 3],Agosto[Semana 4],Agosto[Semana 5])","v":{"v":0,"d":"0.0"}},{"$nulls":5},{"$f":"TEXT(DATEVALUE(Agosto[[#Headers],[Agosto]]&\" \"&YEAR(TODAY())),\"mmm.\")&\" total: Horas extra\"","v":"ago. total: Horas extra"},null,{"$f":"SUM(Agosto[Horas extra],Agosto[[Horas extra ]],Agosto[[Horas extra   ]],Agosto[[Horas extra  ]],Agosto[[Horas extra    ]])","v":{"v":0,"d":"0.0"}}]
[]
[" ",{"$nulls":3},"Septiembre","Semana 1","Horas extra","Semana 2","Horas extra ","Semana 3","Horas extra  ","Semana 4","Horas extra   ","Semana 5","Horas extra    "]
[{"$nulls":4},"Lunes"]
[{"$nulls":4},"Martes"]
[{"$nulls":4},"Miércoles"]
[{"$nulls":4},"Jueves"]
[{"$nulls":4},"Viernes"]
[{"$nulls":4},"Sábado"]
[{"$nulls":4},"Domingo"]
[{"$nulls":4},"Total semanal de horas",{"$f":"SUBTOTAL(109,Septiembre[Semana 1])","v":{"v":0,"d":"0.0"}},{"$f":"SUBTOTAL(109,Septiembre[Horas extra])","v":{"v":0,"d":"0.0"}},{"$f":"SUBTOTAL(109,Septiembre[Semana 2])","v":{"v":0,"d":"0.0"}},{"$f":"SUBTOTAL(109,Septiembre[[Horas extra ]])","v":{"v":0,"d":"0.0"}},{"$f":"SUBTOTAL(109,Septiembre[Semana 3])","v":{"v":0,"d":"0.0"}},{"$f":"SUBTOTAL(109,Septiembre[[Horas extra  ]])","v":{"v":0,"d":"0.0"}},{"$f":"SUBTOTAL(109,Septiembre[Semana 4])","v":{"v":0,"d":"0.0"}},{"$f":"SUBTOTAL(109,Septiembre[[Horas extra   ]])","v":{"v":0,"d":"0.0"}},{"$f":"SUBTOTAL(109,Septiembre[Semana 5])","v":{"v":0,"d":"0.0"}},{"$f":"SUBTOTAL(109,Septiembre[[Horas extra    ]])","v":{"v":0,"d":"0.0"}}]
[" ",{"$nulls":3},{"$f":"TEXT(DATEVALUE(Septiembre[[#Headers],[Septiembre]]&\" \"&YEAR(TODAY())),\"mmm.\")&\" total: Horas normales\"","v":"sep. total: Horas normales"},{"$f":"SUM(Septiembre[Semana 1],Septiembre[Semana 2],Septiembre[Semana 3],Septiembre[Semana 4],Septiembre[Semana 5])","v":{"v":0,"d":"0.0"}},{"$nulls":5},{"$f":"TEXT(DATEVALUE(Septiembre[[#Headers],[Septiembre]]&\" \"&YEAR(TODAY())),\"mmm.\")&\" total: Horas extra\"","v":"sep. total: Horas extra"},null,{"$f":"SUM(Septiembre[Horas extra],Septiembre[[Horas extra ]],Septiembre[[Horas extra  ]],Septiembre[[Horas extra   ]],Septiembre[[Horas extra    ]])","v":{"v":0,"d":"0.0"}}]
[" ",{"$nulls":3},"Octubre, noviembre, diciembre   |   Tarjeta de horas trabajadas del empleado: diaria, semanal, mensual y anual"]
[" ",{"$nulls":3},"Octubre","Semana 1","Horas extra","Semana 2","Horas extra ","Semana 3","Horas extra  ","Semana 4","Horas extra   ","Semana 5","Horas extra    "]
[{"$nulls":4},"Lunes"]
[{"$nulls":4},"Martes"]
[{"$nulls":4},"Miércoles"]
[{"$nulls":4},"Jueves"]
[{"$nulls":4},"Viernes"]
[{"$nulls":4},"Sábado"]
[{"$nulls":4},"Domingo"]
[{"$nulls":4},"Total semanal de horas",{"$f":"SUBTOTAL(109,Octubre[Semana 1])","v":{"v":0,"d":"0.0"}},{"$f":"SUBTOTAL(109,Octubre[Horas extra])","v":{"v":0,"d":"0.0"}},{"$f":"SUBTOTAL(109,Octubre[Semana 2])","v":{"v":0,"d":"0.0"}},{"$f":"SUBTOTAL(109,Octubre[[Horas extra ]])","v":{"v":0,"d":"0.0"}},{"$f":"SUBTOTAL(109,Octubre[Semana 3])","v":{"v":0,"d":"0.0"}},{"$f":"SUBTOTAL(109,Octubre[[Horas extra  ]])","v":{"v":0,"d":"0.0"}},{"$f":"SUBTOTAL(109,Octubre[Semana 4])","v":{"v":0,"d":"0.0"}},{"$f":"SUBTOTAL(109,Octubre[[Horas extra   ]])","v":{"v":0,"d":"0.0"}},{"$f":"SUBTOTAL(109,Octubre[Semana 5])","v":{"v":0,"d":"0.0"}},{"$f":"SUBTOTAL(109,Octubre[[Horas extra    ]])","v":{"v":0,"d":"0.0"}}]
[" ",{"$nulls":3},{"$f":"TEXT(DATEVALUE(Octubre[[#Headers],[Octubre]]&\" \"&YEAR(TODAY())),\"mmm.\")&\" total: Horas normales\"","v":"oct. total: Horas normales"},{"$f":"SUM(Octubre[Semana 1],Octubre[Semana 2],Octubre[Semana 3],Octubre[Semana 4],Octubre[Semana 5])","v":{"v":0,"d":"0.0"}},{"$nulls":5},{"$f":"TEXT(DATEVALUE(Octubre[[#Headers],[Octubre]]&\" \"&YEAR(TODAY())),\"mmm.\")&\" total: Horas extra\"","v":"oct. total: Horas extra"},null,{"$f":"SUM(Octubre[Horas extra],Octubre[[Horas extra ]],Octubre[[Horas extra  ]],Octubre[[Horas extra   ]],Octubre[[Horas extra    ]])","v":{"v":0,"d":"0.0"}}]
[]
[" ",{"$nulls":3},"Noviembre","Semana 1","Horas extra","Semana 2","Horas extra ","Semana 3","Horas extra  ","Semana 4","Horas extra    ","Semana 5","Horas extra     "]
[{"$nulls":4},"Lunes"]
[{"$nulls":4},"Martes"]
[{"$nulls":4},"Miércoles"]
[{"$nulls":4},"Jueves"]
[{"$nulls":4},"Viernes"]
[{"$nulls":4},"Sábado"]
[{"$nulls":4},"Domingo"]
[{"$nulls":4},"Total semanal de horas",{"$f":"SUBTOTAL(109,Noviembre[Semana 1])","v":{"v":0,"d":"0.0"}},{"$f":"SUBTOTAL(109,Noviembre[Horas extra])","v":{"v":0,"d":"0.0"}},{"$f":"SUBTOTAL(109,Noviembre[Semana 2])","v":{"v":0,"d":"0.0"}},{"$f":"SUBTOTAL(109,Noviembre[[Horas extra ]])","v":{"v":0,"d":"0.0"}},{"$f":"SUBTOTAL(109,Noviembre[Semana 3])","v":{"v":0,"d":"0.0"}},{"$f":"SUBTOTAL(109,Noviembre[[Horas extra  ]])","v":{"v":0,"d":"0.0"}},{"$f":"SUBTOTAL(109,Noviembre[Semana 4])","v":{"v":0,"d":"0.0"}},{"$f":"SUBTOTAL(109,Noviembre[[Horas extra    ]])","v":{"v":0,"d":"0.0"}},{"$f":"SUBTOTAL(109,Noviembre[Semana 5])","v":{"v":0,"d":"0.0"}},{"$f":"SUBTOTAL(109,Noviembre[[Horas extra     ]])","v":{"v":0,"d":"0.0"}}]
[" ",{"$nulls":3},{"$f":"TEXT(DATEVALUE(Noviembre[[#Headers],[Noviembre]]&\" \"&YEAR(TODAY())),\"mmm.\")&\" total: Horas normales\"","v":"nov. total: Horas normales"},{"$f":"SUM(Noviembre[Semana 1],Noviembre[Semana 2],Noviembre[Semana 3],Noviembre[Semana 4],Noviembre[Semana 5])","v":{"v":0,"d":"0.0"}},{"$nulls":5},{"$f":"TEXT(DATEVALUE(Noviembre[[#Headers],[Noviembre]]&\" \"&YEAR(TODAY())),\"mmm.\")&\" total: Horas extra\"","v":"nov. total: Horas extra"},null,{"$f":"SUM(Noviembre[Horas extra],Noviembre[[Horas extra ]],Noviembre[[Horas extra  ]],Noviembre[[Horas extra    ]],Noviembre[[Horas extra     ]])","v":{"v":0,"d":"0.0"}}]
[]
[" ",{"$nulls":3},"Diciembre","Semana 1","Horas extra","Semana 2","Horas extra ","Semana 3","Horas extra  ","Semana 4","Horas extra   ","Semana 5","Horas extra    "]
[{"$nulls":4},"Lunes"]
[{"$nulls":4},"Martes"]
[{"$nulls":4},"Miércoles"]
[{"$nulls":4},"Jueves"]
[{"$nulls":4},"Viernes"]
[{"$nulls":4},"Sábado"]
[{"$nulls":4},"Domingo"]
[{"$nulls":4},"Total semanal de horas",{"$f":"SUBTOTAL(109,Diciembre[Semana 1])","v":{"v":0,"d":"0.0"}},{"$f":"SUBTOTAL(109,Diciembre[Horas extra])","v":{"v":0,"d":"0.0"}},{"$f":"SUBTOTAL(109,Diciembre[Semana 2])","v":{"v":0,"d":"0.0"}},{"$f":"SUBTOTAL(109,Diciembre[[Horas extra ]])","v":{"v":0,"d":"0.0"}},{"$f":"SUBTOTAL(109,Diciembre[Semana 3])","v":{"v":0,"d":"0.0"}},{"$f":"SUBTOTAL(109,Diciembre[[Horas extra  ]])","v":{"v":0,"d":"0.0"}},{"$f":"SUBTOTAL(109,Diciembre[Semana 4])","v":{"v":0,"d":"0.0"}},{"$f":"SUBTOTAL(109,Diciembre[[Horas extra   ]])","v":{"v":0,"d":"0.0"}},{"$f":"SUBTOTAL(109,Diciembre[Semana 5])","v":{"v":0,"d":"0.0"}},{"$f":"SUBTOTAL(109,Diciembre[[Horas extra    ]])","v":{"v":0,"d":"0.0"}}]
[" ",{"$nulls":3},{"$f":"TEXT(DATEVALUE(Diciembre[[#Headers],[Diciembre]]&\" \"&YEAR(TODAY())),\"mmm.\")&\" total: Horas normales\"","v":"dic. total: Horas normales"},{"$f":"SUM(Diciembre[Semana 1],Diciembre[Semana 2],Diciembre[Semana 3],Diciembre[Semana 4],Diciembre[Semana 5])","v":{"v":0,"d":"0.0"}},{"$nulls":5},{"$f":"TEXT(DATEVALUE(Diciembre[[#Headers],[Diciembre]]&\" \"&YEAR(TODAY())),\"mmm.\")&\" total: Horas extra\"","v":"dic. total: Horas extra"},null,{"$f":"SUM(L130:L136,N130:N136,P130:P136,R130:R136,T130:T136)","v":{"v":0,"d":"0.0"}}]